bitfinex/quotes_ETHUSD_20250730
["timestamp","ask_amount","ask_price","bid_price","bid_amount"]
[1753899645690,0.2451429,3815.6,3815.1,2.75230357]
[1753899645887,0.2451429,3815.6,3815.4,2.6209432]
[1753899646087,0.2451429,3815.6,3815.5,0.1312]
[1753899646394,0.2851429,3815.9,3815.5,3.64438848]
[1753899646594,0.2451429,3815.8,3815.6,0.4635]
[1753899646831,0.2451429,3815.8,3815.5,0.5706]
[1753899646832,0.04,3815.9,3815.7,0.4635]
[1753899647822,0.04,3815.9,3815.5,0.1312]
[1753899648032,0.04,3815.9,3815.6,0.4635]
[1753899648033,0.28510595,3815.9,3815.6,0.4635]
[1753899648192,0.24510595,3815.8,3815.6,0.4635]
[1753899648394,0.24510595,3815.7,3815.6,0.4635]
[1753899648589,0.28510595,3815.9,3815.6,0.4635]
[1753899648827,0.24510595,3815.8,3815.7,0.4635]
[1753899649037,0.04,3815.9,3815.7,1.69]
[1753899649237,0.28509772,3815.9,3815.8,3.05718242]
[1753899649437,0.04,3815.9,3815.8,0.4365]
[1753899649627,0.04,3815.9,3815.8,0.9]
[1753899650631,0.28509772,3815.9,3815.8,0.9]
[1753899651606,0.04,3815.9,3815.8,0.9]
[1753899652230,0.04,3815.9,3815.8,0.4635]
[1753899652793,0.04,3815.9,3815.7,0.1312]
[1753899652993,0.5108,3815.9,3815.4,0.4635]
[1753899653246,0.5108,3815.9,3815.5,0.1312]
[1753899653540,0.4708,3815.8,3815.5,0.1312]
[1753899653740,0.1312,3815.6,3814.6,0.7814]
[1753899653894,1.21531772,3815.5,3814.6,1.2449]
[1753899654096,0.1312,3815.2,3814.7,0.1312]
[1753899654339,0.1312,3815.0,3814.4,0.1312]
[1753899654712,0.7573,3815.4,3814.5,0.92621575]
[1753899655039,0.1312,3815.3,3814.8,0.1312]
[1753899655237,0.65353,3815.9,3814.9,0.9]
[1753899655238,5.0062,3815.9,3814.9,0.9]
[1753899655394,0.1312,3815.8,3815.2,0.1312]
[1753899655835,0.24510106,3815.7,3815.2,0.5947]
[1753899656038,0.97023655,3815.6,3814.5,0.4635]
[1753899656239,0.4708,3815.5,3814.5,0.4635]
[1753899656541,0.4708,3815.5,3814.6,0.4365]
[1753899656843,0.944,3815.5,3814.5,0.4635]
[1753899656999,5.5543,3815.9,3814.0,3.0]
[1753899657000,1.78893655,3815.4,3814.0,8.4751]
[1753899657200,0.17889366,3815.3,3814.0,11.09700541]
[1753899657399,0.4708,3815.2,3814.0,8.0116]
[1753899657627,0.4708,3815.2,3814.1,0.4635]
[1753899658099,4.99753655,3815.1,3813.4,0.7597]
[1753899658320,0.56472302,3815.0,3813.8,0.4635]
[1753899658531,0.813,3814.8,3813.8,0.4635]
[1753899659920,0.4708,3814.7,3813.6,0.001]
[1753899660135,0.944,3814.7,3813.6,0.001]
[1753899660341,0.944,3814.7,3813.6,3.001]
[1753899660541,0.944,3814.7,3813.6,0.001]
[1753899660758,0.944,3814.7,3813.7,0.4635]
[1753899661360,0.4708,3814.7,3813.7,0.48972125]
[1753899661552,0.4708,3814.7,3813.7,3.08560465]
[1753899661753,0.24523026,3814.6,3813.7,2.62210465]
[1753899661989,0.24523026,3814.6,3813.8,0.4635]
[1753899662675,0.24523026,3814.6,3813.6,0.001]
[1753899662878,0.813,3814.8,3813.9,0.4635]
[1753899663094,0.24523294,3814.7,3813.9,0.4635]
[1753899664079,0.7868,3814.6,3813.6,0.001]
[1753899664282,0.27146949,3814.5,3813.6,0.001]
[1753899664641,0.71603294,3814.5,3813.6,0.001]
[1753899664842,0.4708,3814.5,3813.6,0.001]
[1753899665247,0.7868,3814.6,3813.7,1.6737]
[1753899665445,0.02623655,3814.5,3813.6,0.001]
[1753899665680,0.8256,3814.3,3813.6,0.001]
[1753899665870,0.02623655,3814.2,3813.6,0.001]
[1753899666072,0.1312,3813.7,3813.6,0.001]
[1753899666660,1.9056,3813.7,3813.6,0.001]
[1753899667384,1.4324,3813.7,3813.6,0.001]
[1753899667587,1.9056,3813.7,3813.6,0.001]
[1753899667773,1.62296,3813.7,3813.6,0.001]
[1753899667945,2.09616,3813.7,3813.6,0.001]
[1753899669117,0.9616,3813.7,3813.6,0.001]
[1753899669909,1.2564,3814.1,3813.6,0.4645]
[1753899670112,0.1312,3813.9,3813.6,0.4645]
[1753899670607,0.1312,3813.9,3813.6,0.001]
[1753899671805,0.49703655,3813.8,3813.6,0.001]
[1753899671970,0.1312,3813.7,3813.6,0.001]
[1753899672173,0.9471,3813.7,3813.6,0.001]
[1753899672370,1.8911,3813.7,3813.6,0.001]
[1753899673013,1.4179,3813.7,3813.6,0.001]
[1753899674213,1.44413655,3813.7,3813.6,0.001]
[1753899674370,1.4179,3813.7,3813.6,0.001]
[1753899674992,1.44413655,3813.7,3813.6,0.001]
[1753899675203,1.4179,3813.7,3813.6,0.001]
[1753899675390,1.44413655,3813.7,3813.6,0.001]
[1753899675986,1.96919202,3813.7,3813.6,0.001]
[1753899676523,38.16755406,3813.7,3813.6,0.001]
[1753899676676,38.27528631,3813.7,3813.6,0.001]
[1753899678371,8.27528631,3813.7,3813.6,0.001]
[1753899678583,38.27528631,3813.7,3813.6,0.001]
[1753899678835,42.48128631,3813.7,3813.6,0.001]
[1753899679190,9.17519202,3813.7,3813.6,0.001]
[1753899679387,41.79731751,3813.7,3813.6,0.001]
[1753899679815,9.17519202,3813.7,3813.6,0.001]
[1753899680132,8.70299202,3813.7,3813.6,0.001]
[1753899680633,3.8159,3813.7,3813.6,0.001]
[1753899680938,8.0219,3813.7,3813.6,0.001]
[1753899681516,0.8159,3813.7,3813.6,0.001]
[1753899681715,4.206,3813.7,3813.6,0.4761]
[1753899682320,4.206,3813.7,3813.6,0.001]
[1753899683019,0.792,3814.4,3813.6,0.9458]
[1753899683222,4.206,3814.3,3813.7,0.4751]
[1753899683388,4.206,3814.3,3813.7,0.9448]
[1753899683593,4.206,3814.3,3813.7,0.4697]
[1753899683813,4.206,3814.3,3813.8,0.4751]
[1753899684088,4.206,3814.3,3813.9,0.9448]
[1753899684421,0.8237,3814.1,3813.6,0.001]
[1753899684607,0.02623655,3814.0,3813.6,0.001]
[1753899684810,4.205,3813.9,3813.6,0.001]
[1753899685390,0.4626,3813.8,3813.6,0.001]
[1753899685582,0.41174108,3813.7,3813.6,0.001]
[1753899685983,0.54294108,3813.7,3813.6,0.001]
[1753899687841,2.29407763,3813.7,3813.6,0.001]
[1753899688186,2.26784108,3813.7,3813.6,0.001]
[1753899690710,2.51343864,3813.7,3813.6,0.001]
[1753899690909,2.53967519,3813.7,3813.6,0.001]
[1753899691433,2.53967556,3813.7,3813.6,0.001]
[1753899691808,2.51343901,3813.7,3813.6,0.001]
[1753899692423,2.04723901,3813.7,3813.6,0.001]
[1753899692824,2.53967556,3813.7,3813.6,0.001]
[1753899693023,2.51343901,3813.7,3813.6,0.001]
[1753899693613,2.53967556,3813.7,3813.6,0.001]
[1753899693817,2.51332574,3813.7,3813.6,0.001]
[1753899694311,2.04712574,3813.7,3813.6,0.001]
[1753899694512,1.33904108,3813.7,3813.6,0.001]
[1753899694713,1.17273762,3813.7,3813.6,0.001]
[1753899694939,4.57863762,3813.7,3813.6,0.4761]
[1753899695098,4.57863762,3813.7,3813.6,0.9458]
[1753899695301,0.002,3814.0,3813.7,0.7874]
[1753899695502,0.002,3814.0,3813.7,1.7322]
[1753899695819,0.002,3814.0,3813.8,0.9448]
[1753899696441,0.002,3814.0,3813.9,1.076]
[1753899697438,0.002,3814.0,3813.9,3.69798799]
[1753899697637,0.002,3814.0,3813.9,1.076]
[1753899702630,0.002,3814.0,3813.6,0.4761]
[1753899702838,0.1312,3813.8,3813.6,0.4761]
[1753899703428,0.1312,3813.8,3813.6,0.001]
[1753899703845,0.02623655,3813.7,3813.6,0.001]
[1753899704452,0.4626,3813.7,3813.6,0.001]
[1753899705764,1.7476,3813.7,3813.6,0.001]
[1753899705938,1.93830366,3813.7,3813.6,0.001]
[1753899706146,1.47210366,3813.7,3813.6,0.001]
[1753899706746,0.1312,3813.8,3813.6,0.001]
[1753899706957,0.1312,3813.8,3813.6,0.4708]
[1753899707163,0.1312,3813.8,3813.7,0.4698]
[1753899709363,0.566,3813.8,3813.6,0.001]
[1753899709537,4.6308,3813.7,3813.6,0.001]
[1753899709738,5.10982365,3813.7,3813.6,0.001]
[1753899710672,4.67502365,3813.7,3813.6,0.001]
[1753899711275,4.196,3813.7,3813.6,0.4708]
[1753899711860,0.002,3814.0,3813.6,0.4708]
[1753899711861,0.002,3814.0,3813.7,0.8182]
[1753899712339,0.002,3814.0,3813.8,0.9382]
[1753899712739,0.002,3814.0,3813.9,0.9382]
[1753899713250,0.002,3814.0,3813.9,1.0694]
[1753899713468,0.002,3814.0,3813.9,3.69138799]
[1753899713876,0.002,3814.0,3813.9,1.0694]
[1753899714445,0.002,3814.0,3813.9,8.07038799]
[1753899716059,0.002,3814.0,3813.9,4.8984]
[1753899717740,0.002,3814.0,3813.9,1.8984]
[1753899717940,0.002,3814.0,3813.6,0.001]
[1753899718555,0.1312,3813.7,3813.6,0.001]
[1753899718787,1.8057,3813.7,3813.6,0.001]
[1753899719089,1.83193655,3813.7,3813.6,0.001]
[1753899720359,8.9977,3813.7,3813.6,0.001]
[1753899725386,8.61982549,3813.7,3813.6,0.001]
[1753899725719,10.31797497,3813.7,3813.6,0.001]
[1753899725862,10.31797497,3813.7,3812.7,0.001]
[1753899725863,1.3651,3813.4,3810.5,0.001]
[1753899726066,5.62224822,3813.6,3810.5,0.001]
[1753899726067,0.1312,3811.4,3810.9,0.1312]
[1753899726309,0.1312,3811.2,3810.6,0.4698]
[1753899726463,1.09247366,3811.2,3810.6,0.4698]
[1753899726670,1.09247366,3811.2,3810.5,0.001]
[1753899726867,5.50371916,3811.2,3810.5,0.001]
[1753899727071,35.63368474,3811.2,3810.5,0.001]
[1753899727272,33.00983924,3811.2,3810.5,0.001]
[1753899727574,35.63368474,3811.2,3810.5,0.001]
[1753899727908,33.00983924,3811.2,3810.5,0.001]
[1753899728217,43.5727372,3811.2,3810.5,0.001]
[1753899728368,33.99265864,3810.6,3810.5,0.001]
[1753899728585,44.56486461,3810.6,3810.5,0.001]
[1753899728790,45.48116461,3810.6,3810.5,0.001]
[1753899729029,15.48116461,3810.6,3810.5,0.001]
[1753899729217,45.48116461,3810.6,3810.5,0.001]
[1753899729418,14.01486461,3810.6,3810.5,0.001]
[1753899729602,11.4446,3810.6,3810.5,0.001]
[1753899730187,6.4352,3810.6,3810.5,0.4708]
[1753899730391,10.6252,3810.6,3810.5,0.9392]
[1753899730632,6.4352,3810.6,3810.5,0.9392]
[1753899731019,4.3222,3810.6,3810.5,0.9392]
[1753899732531,4.3222,3810.6,3810.5,0.4708]
[1753899733533,0.7708,3811.6,3810.6,0.7634]
[1753899733830,0.1312,3810.8,3810.7,0.9382]
[1753899734030,4.3222,3810.8,3810.7,0.9382]
[1753899734730,0.1312,3810.8,3810.7,0.9382]
[1753899735032,4.191,3810.8,3810.7,0.9382]
[1753899736839,4.191,3810.8,3810.7,0.9301]
[1753899737231,0.1312,3811.0,3810.7,0.9301]
[1753899737399,0.1312,3811.5,3810.8,0.9509412]
[1753899737602,6.306,3812.0,3810.8,0.9509412]
[1753899737603,0.1312,3811.6,3811.2,2.62378118]
[1753899737898,0.1312,3811.6,3811.0,3.3931832]
[1753899737899,0.1312,3811.6,3811.3,0.9247]
[1753899738335,0.1312,3811.6,3811.4,0.9247]
[1753899738537,0.8306,3812.7,3811.6,0.7692]
[1753899738738,4.189,3812.6,3811.7,0.9247]
[1753899738900,0.1312,3812.4,3811.8,3.0877964]
[1753899739104,0.1312,3812.4,3811.9,0.9247]
[1753899739327,4.189,3812.3,3811.9,0.9247]
[1753899739522,4.189,3812.3,3811.9,2.62329507]
[1753899739753,4.189,3812.3,3812.0,0.9247]
[1753899739902,4.189,3812.3,3812.1,0.9247]
[1753899740105,4.189,3812.3,3812.2,0.4644]
[1753899740411,4.189,3812.3,3812.2,0.9247]
[1753899740729,0.1312,3812.6,3812.2,0.9247]
[1753899741043,4.188,3812.8,3812.4,3.44279952]
[1753899741343,4.188,3812.8,3812.5,0.9247]
[1753899741705,4.188,3812.8,3812.4,0.951]
[1753899741902,4.188,3812.8,3812.6,0.9247]
[1753899742101,4.188,3812.8,3812.7,0.4644]
[1753899742302,0.04,3812.9,3812.7,0.9247]
[1753899742548,0.04,3812.9,3812.8,0.4603]
[1753899742729,0.04,3812.9,3812.8,0.9247]
[1753899743161,0.04,3812.9,3812.7,0.1312]
[1753899743455,0.04,3812.9,3812.8,0.4644]
[1753899745901,0.04,3812.9,3812.8,0.9247]
[1753899750063,0.04,3812.9,3812.8,3.54744443]
[1753899750265,0.04,3812.9,3812.8,0.9247]
[1753899752371,0.04,3812.9,3812.8,0.4644]
[1753899752572,0.04,3812.9,3812.8,3.67864443]
[1753899753272,0.04,3813.9,3812.9,0.55]
[1753899753473,0.04,3813.9,3813.8,1.3755]
[1753899753695,0.04,3813.9,3813.8,5.05345674]
[1753899753883,0.04,3813.9,3813.8,5.0796773]
[1753899754583,0.04,3813.9,3813.8,8.0796773]
[1753899754774,0.04,3813.9,3813.8,8.05345674]
[1753899755771,0.04,3813.9,3813.8,7.04315674]
[1753899755976,0.04,3813.9,3813.8,7.50345674]
[1753899759701,0.04,3813.9,3813.8,7.04315674]
[1753899760612,0.04,3813.9,3813.8,11.22315674]
[1753899760789,0.04,3813.9,3813.8,11.68345674]
[1753899761112,0.04,3813.9,3813.8,12.23345674]
[1753899762714,0.002,3814.4,3814.0,0.55]
[1753899762915,0.002,3814.4,3814.3,3.17171302]
[1753899763118,0.002,3814.4,3814.3,3.30291302]
[1753899763482,0.002,3814.4,3814.3,4.22761302]
[1753899763820,0.002,3814.4,3814.3,3.76731302]
[1753899764404,0.002,3814.4,3814.3,4.22761302]
[1753899764623,0.002,3814.4,3814.3,5.01983015]
[1753899764921,0.002,3814.4,3814.3,4.99361302]
[1753899766193,0.002,3814.4,3814.3,9.17061302]
[1753899766641,0.002,3814.4,3814.3,0.8972]
[1753899766838,0.002,3814.4,3814.3,4.3082]
[1753899767136,0.002,3814.4,3814.3,0.1312]
[1753899767333,0.4613,3814.4,3814.3,0.1312]
[1753899769213,0.9527,3814.4,3814.3,0.1312]
[1753899769439,0.4613,3814.4,3814.0,4.176]
[1753899769735,0.4593,3814.3,3814.2,0.1312]
[1753899770852,0.002,3814.4,3814.2,0.1312]
[1753899771308,0.4593,3814.3,3814.2,0.1312]
[1753899771837,0.9507,3814.3,3813.6,0.7915]
[1753899772139,0.4593,3814.3,3814.1,0.1312]
[1753899772938,0.9507,3814.2,3814.1,0.1312]
[1753899773252,0.9507,3814.2,3813.9,0.1312]
[1753899773548,1.7458,3814.1,3813.1,0.8239]
[1753899773798,0.1312,3814.0,3813.5,0.1312]
[1753899774308,0.1312,3814.0,3813.6,0.4974]
[1753899775648,0.4613,3814.4,3813.5,2.62223739]
[1753899775834,0.4613,3814.4,3813.9,0.1312]
[1753899776149,0.1312,3813.7,3813.1,0.1312]
[1753899776309,0.1312,3813.8,3813.1,0.1312]
[1753899776644,0.4593,3813.7,3813.1,0.1322]
[1753899778323,0.4593,3814.0,3813.2,3.14608545]
[1753899778525,0.4593,3814.0,3813.3,0.4974]
[1753899778729,0.5905,3814.0,3813.5,0.1312]
[1753899778927,0.6331,3813.9,3813.5,0.1312]
[1753899779163,1.0924,3813.9,3813.5,0.1312]
[1753899779367,0.4593,3813.8,3813.5,0.1312]
[1753899779730,0.4593,3813.7,3813.5,0.1312]
[1753899780036,1.2554,3813.6,3813.1,0.001]
[1753899780237,0.4593,3813.5,3813.2,0.1312]
[1753899780437,0.9507,3814.0,3813.3,0.4974]
[1753899780670,0.1312,3813.9,3813.4,0.1312]
[1753899780866,0.9507,3813.8,3813.4,0.1312]
[1753899781052,0.4914,3813.8,3813.4,0.1312]
[1753899781284,0.9507,3813.7,3813.4,0.1312]
[1753899781441,0.4593,3813.6,3813.4,0.1312]
[1753899781646,1.7697,3813.5,3813.1,0.001]
[1753899781967,0.819,3813.2,3813.1,0.001]
[1753899782152,0.84523655,3813.2,3813.1,0.001]
[1753899782353,0.97693655,3813.2,3813.1,0.001]
[1753899782555,1.75873655,3813.2,3813.1,0.001]
[1753899783854,1.7325,3813.2,3813.1,0.001]
[1753899784056,4.90575,3813.2,3813.1,0.001]
[1753899785231,4.93198655,3813.2,3813.1,0.001]
[1753899785672,1.90575,3813.2,3813.1,0.001]
[1753899785837,8.58535,3813.2,3813.1,0.001]
[1753899786034,3.7818,3813.2,3813.1,0.001]
[1753899787037,4.2411,3813.2,3813.1,0.001]
[1753899787238,0.7818,3813.2,3813.1,0.001]
[1753899787462,0.00811818,3813.4,3813.1,0.001]
[1753899787645,0.00811818,3813.4,3813.1,0.4984]
[1753899788149,0.00811818,3813.4,3813.2,0.4974]
[1753899788674,0.00811818,3813.4,3813.3,0.4974]
[1753899789562,0.00811818,3813.4,3813.3,4.38680054]
[1753899789762,0.00811818,3813.4,3813.3,4.41302454]
[1753899789950,0.00811818,3813.4,3813.3,1.7644]
[1753899790155,0.00811818,3813.4,3813.3,4.38680054]
[1753899790549,0.00811818,3813.4,3813.3,1.7644]
[1753899790751,0.00811818,3813.4,3813.3,4.96302454]
[1753899790967,4.209,3814.9,3814.0,2.62189543]
[1753899791138,4.209,3814.9,3814.1,0.8002]
[1753899791583,0.04,3814.9,3814.3,2.62171302]
[1753899791788,0.04,3814.9,3814.3,3.32913015]
[1753899791953,0.04,3814.9,3814.3,4.26711302]
[1753899793401,0.04,3814.9,3814.3,4.29333015]
[1753899793609,0.04,3814.9,3814.3,5.11373015]
[1753899793823,0.002,3815.6,3815.5,11.94096952]
[1753899794304,0.002,3815.6,3815.5,0.8204]
[1753899794468,0.002,3815.6,3815.5,1.3178]
[1753899794787,0.002,3815.6,3815.2,0.4974]
[1753899794988,0.002,3815.6,3815.0,4.9884]
[1753899795204,0.002,3815.6,3815.0,4.168]
[1753899795378,0.002,3815.6,3815.0,2.62122778]
[1753899795582,0.002,3815.6,3815.1,0.4974]
[1753899796203,0.002,3815.6,3815.2,0.9642]
[1753899796701,0.002,3815.6,3815.5,3.17088848]
[1753899796909,0.002,3815.6,3815.5,11.9711784]
[1753899797107,0.002,3815.6,3815.5,12.85836952]
[1753899797401,0.002,3815.6,3815.5,15.85836952]
[1753899798974,0.002,3816.0,3815.8,3.17068242]
[1753899799186,0.002,3816.0,3815.8,4.02238924]
[1753899799474,0.002,3816.0,3815.8,9.10178924]
[1753899799668,0.002,3816.0,3815.8,9.07558242]
[1753899801419,0.002,3816.0,3815.8,9.0661224]
[1753899801605,0.002,3816.0,3815.8,9.0651224]
[1753899803702,0.002,3816.0,3815.8,0.9567]
[1753899803922,0.002,3816.0,3815.8,0.1312]
[1753899806015,0.002,3816.0,3815.8,0.5949]
[1753899806616,0.4986,3815.9,3815.8,0.1312]
[1753899806827,0.8261,3815.8,3814.7,0.4637]
[1753899807125,0.9309,3815.7,3815.2,0.1312]
[1753899807422,0.9309,3815.6,3815.2,0.1312]
[1753899808020,0.4586,3815.5,3815.2,0.1312]
[1753899808227,1.1372,3815.8,3815.3,0.4637]
[1753899808228,0.8261,3815.8,3815.3,0.4637]
[1753899808521,0.04,3815.9,3815.4,0.5949]
[1753899808732,0.04,3815.9,3815.7,0.1312]
[1753899809030,0.4986,3815.9,3815.7,0.1312]
[1753899809820,0.4586,3815.8,3815.7,0.1312]
[1753899810023,0.04,3815.9,3815.7,0.5949]
[1753899810322,0.04,3815.9,3815.8,0.4637]
[1753899810885,0.04,3815.9,3815.8,3.63438242]
[1753899811091,0.002,3816.0,3815.8,3.63438242]
[1753899811092,0.002,3816.0,3815.9,4.00301374]
[1753899811325,0.002,3816.0,3815.9,12.89230091]
[1753899811491,0.002,3816.0,3815.9,12.99729478]
[1753899812834,0.7714,3817.3,3816.6,2.62011429]
[1753899813191,0.7715,3817.7,3816.8,11.87577684]
[1753899813408,0.04,3817.9,3816.8,16.16797684]
[1753899813733,0.28429491,3817.9,3816.8,17.08137684]
[1753899813952,0.28429491,3817.9,3816.8,20.08137684]
[1753899814107,0.28429491,3817.9,3817.8,2.61930955]
[1753899814308,0.28429491,3817.9,3817.8,7.46150955]
[1753899814309,0.04,3817.9,3817.8,7.46150955]
[1753899814554,0.57626432,3818.2,3818.1,3.16910374]
[1753899814767,0.04,3818.9,3818.8,2.61862365]
[1753899814909,0.04,3818.9,3818.8,11.16790988]
[1753899815111,0.04,3818.9,3818.8,12.18632365]
[1753899815314,0.04,3818.9,3818.8,12.38343423]
[1753899815535,0.04,3818.9,3818.8,8.22343423]
[1753899815741,0.04,3818.9,3818.8,12.38343423]
[1753899816321,0.04,3819.9,3819.8,3.16793811]
[1753899816552,0.04,3819.9,3819.8,8.14003811]
[1753899816852,0.04,3819.9,3819.8,9.18463811]
[1753899817451,0.24414746,3820.5,3820.4,2.61752696]
[1753899817625,0.24414746,3820.5,3820.4,5.0724]
[1753899817807,0.24414746,3820.5,3820.4,5.2036]
[1753899818323,0.24414746,3820.5,3820.4,5.22977526]
[1753899818523,0.04,3820.9,3820.4,5.22977526]
[1753899818743,0.04,3820.9,3820.5,0.9134]
[1753899818909,0.04,3820.9,3820.6,0.02617389]
[1753899819113,0.04,3820.9,3820.7,4.158]
[1753899819853,0.04,3820.9,3820.8,4.157]
[1753899820640,0.4986,3820.9,3820.0,5.98713923]
[1753899820815,0.24414746,3820.8,3819.8,0.8131]
[1753899821015,0.24414746,3820.8,3820.0,2.61780104]
[1753899821218,0.24414746,3820.7,3819.9,4.156]
[1753899821536,0.24414746,3820.6,3820.3,2.61753802]
[1753899821755,0.24414746,3820.5,3820.4,4.156]
[1753899822060,0.4586,3820.5,3819.9,3.08155923]
[1753899822221,0.24414746,3820.4,3819.8,0.8131]
[1753899822553,0.24414746,3820.4,3819.9,4.156]
[1753899822928,0.4586,3820.3,3819.6,0.4637]
[1753899823126,0.24414746,3820.2,3819.2,2.61833504]
[1753899823326,0.7727,3820.1,3819.3,4.155]
[1753899823530,1.42607475,3820.1,3819.3,4.155]
[1753899824466,0.9309,3820.0,3819.2,4.155]
[1753899824666,0.96747475,3820.1,3819.3,0.0261828]
[1753899824819,0.96747475,3820.1,3819.3,3.10815877]
[1753899825020,0.4586,3820.4,3819.3,3.10815154]
[1753899825256,0.4586,3820.4,3819.5,2.61808734]
[1753899825463,0.4586,3820.4,3819.6,4.18018075]
[1753899825864,0.4586,3820.4,3819.6,4.154]
[1753899826361,0.7643,3820.5,3819.7,2.61800664]
[1753899826534,0.7643,3820.5,3819.8,3.53133013]
[1753899826734,1.3041,3820.9,3819.9,0.02617869]
[1753899826935,0.17672,3820.8,3819.9,4.154]
[1753899827139,0.4326,3820.7,3819.5,3.08321974]
[1753899827333,0.55,3820.6,3819.6,4.154]
[1753899827532,0.55,3820.4,3819.6,4.154]
[1753899827737,0.8957,3820.3,3819.5,4.154]
[1753899827939,1.20249,3820.2,3819.4,4.154]
[1753899828167,1.3024,3820.0,3818.5,0.4651]
[1753899828328,1.3024,3820.0,3818.8,4.154]
[1753899828524,0.8957,3819.9,3818.8,4.154]
[1753899828726,0.8957,3819.9,3818.5,0.4651]
[1753899828727,0.7532,3819.8,3819.1,2.61839131]
[1753899828960,0.7532,3819.8,3819.2,0.02618349]
[1753899829165,0.7532,3819.8,3819.6,0.1312]
[1753899829469,1.1858,3819.7,3818.6,4.153]
[1753899829670,0.7532,3819.7,3819.0,2.61844869]
[1753899829866,0.7532,3819.7,3819.2,2.61832495]
[1753899830199,3.17672,3820.8,3819.3,0.9576828]
[1753899830200,0.7532,3820.1,3819.3,0.9576828]
[1753899833055,0.04,3820.9,3820.6,4.153]
[1753899833368,0.04,3820.9,3820.1,3.08282967]
[1753899833529,0.04,3820.9,3820.5,4.152]
[1753899833731,0.04,3820.9,3820.1,3.08282967]
[1753899833979,0.04,3820.9,3820.2,6.76965331]
[1753899834293,0.04,3820.9,3819.5,0.8117]
[1753899834521,0.04,3820.9,3818.9,5.98713923]
[1753899834522,1.7551,3820.8,3819.6,4.152]
[1753899834661,0.55,3820.6,3819.4,2.61819906]
[1753899834994,0.55,3820.2,3819.0,0.4651]
[1753899835155,0.55,3820.0,3819.1,4.152]
[1753899835357,1.6663,3819.9,3819.1,4.152]
[1753899835561,1.2032,3819.9,3819.1,4.152]
[1753899835788,0.7706,3819.9,3819.1,4.152]
[1753899835991,0.9826,3819.8,3818.7,6.292]
[1753899836190,0.55,3819.6,3818.7,6.292]
[1753899836397,0.55,3819.2,3818.2,4.152]
[1753899836573,0.4326,3819.1,3818.2,4.152]
[1753899837096,0.55,3819.0,3818.1,0.04]
[1753899837295,0.55,3818.8,3818.1,0.04]
[1753899837494,1.74717,3818.9,3818.1,0.04]
[1753899837719,1.2476,3818.9,3818.1,0.04]
[1753899838069,0.55,3818.8,3818.1,0.04]
[1753899838575,1.2476,3818.9,3818.1,0.04]
[1753899839404,1.2476,3818.9,3818.5,0.1312]
[1753899839611,0.4326,3818.8,3818.5,0.1312]
[1753899840310,0.815,3818.9,3818.5,0.1312]
[1753899840486,0.815,3818.9,3818.1,0.04]
[1753899840487,0.55,3818.4,3818.1,0.04]
[1753899840812,0.7886,3818.5,3818.1,0.04]
[1753899841174,0.4326,3818.4,3818.1,0.04]
[1753899841577,0.4326,3818.3,3818.1,0.04]
[1753899841779,1.3522,3818.2,3818.1,0.04]
[1753899841985,2.05321,3818.2,3818.1,0.04]
[1753899842186,2.48581,3818.2,3818.1,0.04]
[1753899842388,4.7848,3818.2,3818.1,0.04]
[1753899842688,3.8022,3818.2,3818.1,0.04]
[1753899843879,0.8022,3818.2,3818.1,0.1712]
[1753899844623,1.3522,3818.2,3818.1,0.04]
[1753899844926,2.3791,3818.2,3818.1,0.04]
[1753899845118,5.61701,3818.2,3818.1,0.04]
[1753899845421,5.48581,3818.2,3818.1,0.04]
[1753899845623,5.49221,3818.2,3818.1,0.04]
[1753899845926,5.02911,3818.2,3818.1,0.04]
[1753899846295,5.49221,3818.2,3818.1,0.04]
[1753899847623,4.59651,3818.2,3818.1,0.04]
[1753899847806,5.02911,3818.2,3818.1,0.04]
[1753899848327,5.49221,3818.2,3818.1,0.04]
[1753899849827,3.55,3818.1,3817.7,0.001]
[1753899850045,0.818,3817.8,3817.7,0.001]
[1753899850252,1.368,3817.8,3817.7,0.001]
[1753899850555,2.2637,3817.8,3817.7,0.001]
[1753899852137,9.4157,3817.8,3817.7,0.001]
[1753899852337,41.01823902,3817.8,3817.7,0.001]
[1753899852537,6.86623902,3817.8,3817.7,0.001]
[1753899852765,0.55,3817.3,3817.1,0.04]
[1753899853061,8.54433655,3817.2,3817.1,0.04]
[1753899853266,8.9507,3817.2,3817.1,0.04]
[1753899853469,9.4138,3817.2,3817.1,0.04]
[1753899853764,12.03352126,3817.2,3817.1,0.04]
[1753899853991,13.49884304,3817.2,3817.1,0.04]
[1753899854139,0.55,3816.5,3816.1,0.04]
[1753899854328,1.3582,3816.2,3816.1,0.04]
[1753899854533,8.08379307,3816.2,3816.1,0.04]
[1753899854767,9.87744238,3816.2,3816.1,0.04]
[1753899855282,10.00864238,3816.2,3816.1,0.04]
[1753899855483,9.62684931,3816.2,3816.1,0.04]
[1753899855660,12.24725704,3816.2,3816.1,0.04]
[1753899855983,39.62684931,3816.2,3816.1,0.04]
[1753899856373,42.24725704,3816.2,3816.1,0.04]
[1753899857586,43.00705704,3816.2,3816.1,0.04]
[1753899858175,6.25284931,3816.2,3816.1,0.04]